bitfinex/quotes_BTCUSD_20250727
["timestamp","ask_amount","ask_price","bid_price","bid_amount"]
[1753578067456,0.55191177,118090.0,118080.0,0.39951129]
[1753578068182,0.23436485,118090.0,118080.0,0.39951129]
[1753578068623,0.23436485,118090.0,118080.0,0.4164483]
[1753578068842,0.55191177,118090.0,118080.0,0.4164483]
[1753578069290,0.55191177,118090.0,118080.0,0.40797983]
[1753578069511,0.54344387,118090.0,118080.0,0.40797983]
[1753578069956,0.54344387,118090.0,118080.0,0.39951129]
[1753578070235,0.52650786,118090.0,118080.0,0.2131973]
[1753578071066,0.52650786,118090.0,118080.0,0.94418346]
[1753578071067,0.00044859,118090.0,118080.0,0.94418346]
[1753578071289,0.00044859,118090.0,118080.0,0.75535654]
[1753578071759,0.00044859,118090.0,118080.0,0.43780962]
[1753578072016,0.00044859,118090.0,118080.0,0.75535654]
[1753578073910,0.00044859,118090.0,118080.0,0.80495424]
[1753578078009,0.00044859,118090.0,118080.0,0.43780962]
[1753578078239,0.03154859,118090.0,118080.0,0.43780962]
[1753578078470,0.03154859,118090.0,118080.0,0.75535654]
[1753578078935,0.03154859,118090.0,118080.0,0.43780962]
[1753578079165,0.03154859,118090.0,118080.0,0.75535654]
[1753578079390,0.03154859,118090.0,118080.0,0.43780962]
[1753578079517,0.03154859,118090.0,118080.0,0.75535654]
[1753578081674,0.03154859,118090.0,118080.0,0.82295736]
[1753578083563,0.03154859,118090.0,118080.0,0.75535654]
[1753578085684,0.03154859,118090.0,118080.0,0.43780962]
[1753578085903,0.03154859,118090.0,118080.0,0.75535654]
[1753578086125,0.03154859,118090.0,118080.0,0.43780962]
[1753578086347,0.03154859,118090.0,118080.0,0.75535654]
[1753578086496,0.03154859,118090.0,118080.0,0.77020579]
[1753578088843,0.01584859,118090.0,118080.0,0.77020579]
[1753578089256,0.00044859,118090.0,118080.0,0.77020579]
[1753578089496,0.00044859,118090.0,118080.0,0.75535654]
[1753578091132,0.00044859,118090.0,118080.0,0.43780962]
[1753578091382,0.00044859,118090.0,118080.0,0.75535654]
[1753578092258,0.00891606,118090.0,118080.0,0.75535654]
[1753578092397,0.00044859,118090.0,118080.0,0.75535654]
[1753578092821,0.00891606,118090.0,118080.0,0.75535654]
[1753578093468,0.00891606,118090.0,118080.0,0.43780962]
[1753578093700,0.00891606,118090.0,118080.0,0.75535654]
[1753578093896,0.00044859,118090.0,118080.0,0.75535654]
[1753578094105,0.00891606,118090.0,118080.0,0.75535654]
[1753578094978,0.0173836,118090.0,118080.0,0.75535654]
[1753578095198,0.00891606,118090.0,118080.0,0.75535654]
[1753578096162,0.00044859,118090.0,118080.0,0.75535654]
[1753578096999,0.00044859,118090.0,118080.0,0.76681612]
[1753578098100,0.00044859,118090.0,118080.0,0.43780962]
[1753578098316,0.00891606,118090.0,118080.0,0.75535654]
[1753578098779,0.00891606,118090.0,118080.0,0.43780962]
[1753578098976,0.00891606,118090.0,118080.0,0.75535654]
[1753578099749,0.01738367,118090.0,118080.0,0.75535654]
[1753578099952,0.02585135,118090.0,118080.0,0.75535654]
[1753578100173,0.01738367,118090.0,118080.0,0.75535654]
[1753578100404,0.00891606,118090.0,118080.0,0.75535654]
[1753578100632,0.0173836,118090.0,118080.0,0.75535654]
[1753578101754,0.0173836,118090.0,118080.0,0.43780962]
[1753578101994,0.02585128,118090.0,118080.0,0.75535654]
[1753578102215,0.0173836,118090.0,118080.0,0.75535654]
[1753578102565,0.02585121,118090.0,118080.0,0.75535654]
[1753578103010,0.03431896,118090.0,118080.0,0.75535654]
[1753578103417,0.02585121,118090.0,118080.0,0.75535654]
[1753578103829,0.03431889,118090.0,118080.0,0.75535654]
[1753578104241,0.02585121,118090.0,118080.0,0.75535654]
[1753578105507,0.03431896,118090.0,118080.0,0.75535654]
[1753578105959,0.04278686,118090.0,118080.0,0.75535654]
[1753578106182,0.03431896,118090.0,118080.0,0.75535654]
[1753578106612,0.03431896,118090.0,118080.0,0.43780962]
[1753578106842,0.04278686,118090.0,118080.0,0.74688821]
[1753578107132,0.0427875,118090.0,118080.0,0.44627816]
[1753578107350,0.04278736,118090.0,118080.0,0.77229341]
[1753578107569,0.03431939,118090.0,118080.0,0.77229341]
[1753578107792,0.03431932,118090.0,118080.0,0.77229341]
[1753578108011,0.02585149,118090.0,118080.0,0.77229341]
[1753578108511,0.03431939,118090.0,118080.0,0.77229341]
[1753578109178,0.02585149,118090.0,118080.0,0.77229341]
[1753578109376,0.03431939,118090.0,118080.0,0.77229341]
[1753578109801,0.03431932,118090.0,118080.0,0.77229341]
[1753578110561,0.03431932,118090.0,118080.0,0.77198455]
[1753578110977,0.02585149,118090.0,118080.0,0.77198455]
[1753578112415,0.03431939,118090.0,118080.0,0.77198455]
[1753578112643,0.02585149,118090.0,118080.0,0.77198455]
[1753578113208,0.03431939,118090.0,118080.0,0.77198455]
[1753578113674,0.02585149,118090.0,118080.0,0.77198455]
[1753578114109,0.01738374,118090.0,118080.0,0.77198455]
[1753578114363,0.02585149,118090.0,118080.0,0.78788455]
[1753578116078,0.03431939,118090.0,118080.0,0.78788455]
[1753578116867,0.02585149,118090.0,118080.0,0.78788455]
[1753578117093,0.03431939,118090.0,118080.0,0.78788455]
[1753578117543,0.02585149,118090.0,118080.0,0.78788455]
[1753578117721,0.03431939,118090.0,118080.0,0.78788455]
[1753578118279,0.03431939,118090.0,118080.0,0.45443763]
[1753578118493,0.03431939,118090.0,118080.0,0.77198455]
[1753578118743,0.03431939,118090.0,118080.0,0.45443763]
[1753578118992,0.03431939,118090.0,118080.0,0.77198455]
[1753578122555,0.07531434,118090.0,118080.0,0.42903243]
[1753578122565,0.07531434,118090.0,118080.0,0.11399844]
[1753578122566,0.2277419,118090.0,118080.0,0.11399844]
[1753578122773,0.53459394,118090.0,118080.0,0.02479]
[1753578122968,0.53459394,118090.0,118080.0,0.12872]
[1753578123146,0.54324394,118090.0,118080.0,0.12872]
[1753578123334,0.17784552,118080.0,118070.0,0.65858635]
[1753578123533,0.17784552,118080.0,118070.0,0.75357298]
[1753578123534,0.18631385,118080.0,118070.0,0.75357298]
[1753578123765,0.19478246,118080.0,118070.0,0.75357298]
[1753578124011,0.03387431,118080.0,118070.0,0.77051121]
[1753578124187,0.03387431,118080.0,118070.0,0.77051129]
[1753578124393,0.03387431,118080.0,118070.0,0.64179129]
[1753578124602,0.03387431,118080.0,118070.0,0.77051129]
[1753578124830,0.03387431,118080.0,118070.0,0.76224217]
[1753578125241,0.21661413,118080.0,118070.0,0.02599]
[1753578125450,0.20814552,118080.0,118070.0,0.02599]
[1753578127216,0.17786058,118070.0,118060.0,0.50700247]
[1753578127442,0.17786058,118070.0,118060.0,0.56744448]
[1753578127871,0.20966058,118070.0,118060.0,0.56540448]
[1753578128080,0.20966058,118070.0,118060.0,0.74328005]
[1753578128295,0.17786058,118070.0,118060.0,0.75175017]
[1753578128499,0.17786058,118070.0,118060.0,0.75379017]
[1753578129155,0.17786058,118070.0,118060.0,0.75679017]
[1753578130683,0.17786058,118070.0,118060.0,0.43924325]
[1753578130988,0.17786058,118070.0,118060.0,0.75679017]
[1753578132021,0.17786058,118070.0,118060.0,0.76526022]
[1753578134555,0.17786058,118070.0,118060.0,0.74832005]
[1753578135430,0.17786058,118070.0,118060.0,0.74532005]
[1753578135661,0.17786058,118070.0,118060.0,0.74632005]
[1753578136095,0.17786058,118070.0,118060.0,0.75479017]
[1753578136973,0.17786058,118070.0,118060.0,0.76326022]
[1753578143341,0.17786058,118070.0,118060.0,0.74632005]
[1753578143977,0.17786058,118070.0,118060.0,0.75479017]
[1753578144805,0.17786058,118070.0,118060.0,0.43724325]
[1753578145007,0.17786058,118070.0,118060.0,0.4457133]
[1753578145232,0.17786058,118070.0,118060.0,0.76326022]
[1753578147279,0.17786058,118070.0,118060.0,0.75479017]
[1753578152694,0.17786058,118070.0,118060.0,0.42030294]
[1753578152872,0.17786058,118070.0,118060.0,0.73784986]
[1753578153274,0.17786058,118070.0,118060.0,0.74632005]
[1753578154098,0.17786058,118070.0,118060.0,0.75479017]
[1753578156413,0.17786058,118070.0,118060.0,0.74632005]
[1753578157022,0.17786058,118070.0,118060.0,0.75479017]
[1753578160213,0.16939103,118070.0,118060.0,0.55997422]
[1753578161161,0.16939103,118070.0,118060.0,0.56844448]
[1753578161370,0.16939103,118070.0,118060.0,0.57691467]
[1753578162073,0.16939103,118070.0,118060.0,0.74632005]
[1753578163941,0.16939103,118070.0,118060.0,0.56844448]
[1753578164196,0.16939103,118070.0,118060.0,0.55997422]
[1753578164389,0.16939103,118070.0,118060.0,0.56844448]
[1753578165023,0.16939103,118070.0,118060.0,0.58374448]
[1753578166889,0.16939103,118070.0,118060.0,0.2577273]
[1753578167107,0.16939103,118070.0,118060.0,0.57527422]
[1753578167632,0.16939103,118070.0,118060.0,0.58374448]
[1753578170171,0.16939103,118070.0,118060.0,0.56844448]
[1753578171025,0.16939103,118070.0,118060.0,0.55997422]
[1753578171736,0.29811103,118070.0,118060.0,0.55997422]
[1753578174634,0.29811103,118070.0,118060.0,0.57657422]
[1753578175387,0.29811103,118070.0,118060.0,0.55997422]
[1753578175913,0.29811103,118070.0,118060.0,0.56844448]
[1753578176640,0.29811103,118070.0,118060.0,0.58504448]
[1753578177149,0.29811103,118070.0,118060.0,0.26749756]
[1753578177416,0.29811103,118070.0,118060.0,0.58504448]
[1753578177684,0.29811103,118070.0,118060.0,0.26749756]
[1753578177932,0.29811103,118070.0,118060.0,0.58504448]
[1753578178639,0.29811103,118070.0,118060.0,0.77792005]
[1753578178878,0.30658058,118070.0,118060.0,0.77792005]
[1753578179119,0.30658058,118070.0,118060.0,0.78639017]
[1753578179356,0.30658058,118070.0,118060.0,0.79486015]
[1753578180569,0.31504991,118070.0,118060.0,0.80333006]
[1753578182062,0.31504991,118070.0,118060.0,0.48578314]
[1753578182300,0.31504991,118070.0,118060.0,0.80333006]
[1753578183912,0.31504991,118070.0,118060.0,0.79486015]
[1753578184140,0.31504991,118070.0,118060.0,0.79486022]
[1753578184810,0.29811103,118070.0,118060.0,0.46884325]
[1753578185089,0.29811103,118070.0,118060.0,0.78639017]
[1753578189037,0.29811103,118070.0,118060.0,0.77792005]
[1753578191694,0.29811103,118070.0,118060.0,0.55997422]
[1753578194302,0.29811103,118070.0,118060.0,0.57577422]
[1753578197754,0.29811103,118070.0,118060.0,0.59217422]
[1753578198792,0.29811103,118070.0,118060.0,0.60064448]
[1753578202614,0.29811103,118070.0,118060.0,0.59217422]
[1753578203088,0.3479898,118070.0,118060.0,0.59217422]
[1753578203693,0.3479898,118070.0,118060.0,0.2746273]
[1753578203909,0.29811103,118070.0,118060.0,0.59217422]
[1753578207605,0.29811103,118070.0,118060.0,0.57577422]
[1753578209474,0.29811103,118070.0,118060.0,0.02903]
[1753578209702,0.29811103,118070.0,118060.0,0.02699]
[1753578210148,0.31441103,118070.0,118060.0,0.02699]
[1753578210601,0.31441103,118070.0,118060.0,0.34453692]
[1753578211301,0.29811103,118070.0,118060.0,0.34453692]
[1753578211746,0.29811103,118070.0,118060.0,0.34654692]
[1753578211968,0.29811103,118070.0,118060.0,0.029]
[1753578212202,0.29811103,118070.0,118060.0,0.34654692]
[1753578214466,0.29807103,118070.0,118060.0,0.34654692]
[1753578214919,0.29807103,118070.0,118060.0,0.029]
[1753578215109,0.29807103,118070.0,118060.0,0.34654692]
[1753578215986,0.29807103,118070.0,118060.0,0.36204692]
[1753578219453,0.29807103,118070.0,118060.0,0.0445]
[1753578219673,0.29807103,118070.0,118060.0,0.36204692]
[1753578224805,0.29807103,118070.0,118060.0,0.34654692]
[1753578226554,0.29807103,118070.0,118060.0,0.029]
[1753578226757,0.29807103,118070.0,118060.0,0.34554692]
[1753578229017,0.29811103,118070.0,118060.0,0.34554692]
[1753578236290,0.29811103,118070.0,118060.0,0.36134692]
[1753578236696,0.3479298,118070.0,118060.0,0.36134692]
[1753578239869,0.3479298,118070.0,118060.0,0.0438]
[1753578240084,0.3479298,118070.0,118060.0,0.36134692]
[1753578245510,0.3479298,118070.0,118060.0,0.37644692]
[1753578248445,0.3479298,118070.0,118060.0,0.0589]
[1753578248645,0.3479298,118070.0,118060.0,0.37644692]
[1753578251010,0.3479298,118070.0,118060.0,0.0589]
[1753578251215,0.3479298,118070.0,118060.0,0.37644692]
[1753578252013,0.3479298,118070.0,118060.0,0.36134692]
[1753578252224,0.3479298,118070.0,118060.0,0.34554692]
[1753578254028,0.3479298,118070.0,118060.0,0.36214692]
[1753578254877,0.3479298,118070.0,118060.0,0.028]
[1753578255106,0.3479298,118070.0,118060.0,0.34554692]
[1753578257130,0.3479298,118070.0,118060.0,0.36074692]
[1753578258453,0.3479298,118070.0,118060.0,0.37664692]
[1753578259661,0.3479298,118070.0,118050.0,0.0266]
[1753578259662,0.1778755,118060.0,118050.0,0.0266]
[1753578259861,0.19249629,118060.0,118050.0,0.0266]
[1753578262092,0.19249629,118060.0,118050.0,0.0276]
[1753578262494,0.19249629,118060.0,118050.0,0.0266]
[1753578263428,0.21794429,118060.0,118050.0,0.0266]
[1753578263570,0.21794429,118060.0,118050.0,0.34414692]
[1753578264645,0.21794429,118060.0,118050.0,0.34610692]
[1753578264848,0.21794429,118060.0,118050.0,0.02856]
[1753578265477,0.21794429,118060.0,118050.0,0.34610692]
[1753578269631,0.2033235,118060.0,118050.0,0.36250692]
[1753578269881,0.1778755,118060.0,118050.0,0.37750692]
[1753578270640,0.1778755,118060.0,118050.0,0.05996]
[1753578270861,0.1778755,118060.0,118050.0,0.37750692]
[1753578273069,0.1778755,118060.0,118050.0,0.05996]
[1753578273334,0.1778755,118060.0,118050.0,0.37750692]
[1753578273547,0.23203233,118060.0,118050.0,0.37750692]
[1753578274155,0.1778755,118060.0,118050.0,0.37750692]
[1753578301598,0.1778755,118060.0,118050.0,0.05996]
[1753578301798,0.1778755,118060.0,118050.0,0.37750692]
[1753578306148,0.1778755,118060.0,118050.0,0.05996]
[1753578306361,0.1778755,118060.0,118050.0,0.37750692]
[1753578323724,0.19321757,118060.0,118050.0,0.37750692]
[1753578335151,0.32181757,118060.0,118050.0,0.37750692]
[1753578342805,0.32181757,118060.0,118050.0,0.05996]
[1753578342966,0.32181757,118060.0,118050.0,0.37750692]
[1753578355118,0.32177757,118060.0,118050.0,0.37750692]
[1753578355366,0.32177757,118060.0,118050.0,0.05996]
[1753578355560,0.32177757,118060.0,118050.0,0.37750692]
[1753578358100,0.37089443,118060.0,118050.0,0.37750692]
[1753578360083,0.32177757,118060.0,118050.0,0.37750692]
[1753578370943,0.32177757,118060.0,118050.0,0.05996]
[1753578371173,0.32177757,118060.0,118050.0,0.37750692]
[1753578376208,0.32177757,118060.0,118050.0,0.3859779]
[1753578377262,0.3064355,118060.0,118050.0,0.3859779]
[1753578379434,0.3064355,118060.0,118050.0,0.37750692]
[1753578384826,0.3202271,118060.0,118050.0,0.37750692]
[1753578386069,0.1916671,118060.0,118050.0,0.37750692]
[1753578386324,0.3201871,118060.0,118050.0,0.55539756]
[1753578386796,0.3201871,118060.0,118050.0,0.37750692]
[1753578387038,0.3201871,118060.0,118050.0,0.3859779]
[1753578392327,0.3201871,118060.0,118050.0,0.37750692]
[1753578397952,0.1916671,118060.0,118050.0,0.37750692]
[1753578398149,0.3201471,118060.0,118050.0,0.37750692]
[1753578399271,0.1916671,118060.0,118050.0,0.37750692]
[1753578399478,0.3201471,118060.0,118050.0,0.37750692]
[1753578405504,0.3201471,118060.0,118050.0,0.05996]
[1753578405702,0.3201471,118060.0,118050.0,0.37750692]
[1753578409908,0.0137916,118060.0,118050.0,0.88988587]
[1753578410093,0.5257884,118080.0,118070.0,0.20856043]
[1753578410331,0.5257884,118080.0,118070.0,0.57139565]
[1753578410332,0.14489128,118080.0,118070.0,0.57139565]
[1753578410533,0.13694818,118080.0,118070.0,0.57139565]
[1753578410924,0.15388498,118080.0,118070.0,0.57139565]
[1753578411264,0.04783486,118080.0,118070.0,0.57139565]
[1753578411473,0.18478355,118080.0,118070.0,0.57139565]
[1753578411685,0.05630355,118080.0,118070.0,0.57139565]
[1753578411866,0.18478355,118080.0,118070.0,0.57239565]
[1753578412044,0.18478413,118080.0,118070.0,0.57239565]
[1753578412477,0.18478463,118080.0,118070.0,0.57239565]
[1753578413157,0.18478463,118080.0,118070.0,0.25484888]
[1753578413385,0.18478463,118080.0,118070.0,0.58086492]
[1753578413872,0.17631623,118080.0,118070.0,0.56392661]
[1753578414206,0.33722438,118080.0,118070.0,0.56392661]
[1753578414619,0.33722438,118080.0,118070.0,0.63810555]
[1753578416630,0.32875569,118080.0,118070.0,0.55545735]
[1753578419174,0.32875569,118080.0,118070.0,0.56392654]
[1753578419410,0.17827926,118090.0,118080.0,0.20874545]
[1753578419602,0.14582424,118090.0,118080.0,0.94731346]
[1753578419840,0.14582424,118090.0,118080.0,0.65573654]
[1753578420081,0.14582424,118090.0,118080.0,0.74021384]
[1753578420297,0.15983035,118090.0,118080.0,0.74021384]
[1753578420750,0.00044859,118090.0,118080.0,1.05776076]
[1753578420972,0.12888859,118090.0,118080.0,1.05776076]
[1753578421182,0.00044859,118090.0,118080.0,1.05776076]
[1753578422316,0.00044859,118090.0,118080.0,1.18620076]
[1753578423953,0.00044859,118090.0,118080.0,1.18720076]
[1753578428434,0.00044859,118090.0,118080.0,1.18620076]
[1753578428844,0.00044859,118090.0,118080.0,1.18920076]
[1753578435919,0.00044859,118090.0,118080.0,1.45470076]
[1753578441933,0.00044859,118090.0,118080.0,1.79470076]
[1753578442140,0.00044859,118090.0,118080.0,2.1296967]
[1753578442408,0.0904,118100.0,118090.0,0.56676583]
[1753578442637,0.0904,118100.0,118090.0,1.79270427]
[1753578445205,0.0904,118100.0,118090.0,1.79570427]
[1753578449345,0.09831599,118100.0,118090.0,1.79570427]
[1753578449472,0.0904,118100.0,118090.0,1.79570427]
[1753578451753,0.09831746,118100.0,118090.0,1.79570427]
[1753578453805,0.09831746,118100.0,118090.0,1.81315329]
[1753578454292,1e-08,118100.0,118090.0,1.83858229]
[1753578454734,0.0004,118120.0,118110.0,0.22723285]
[1753578454954,0.0004,118120.0,118110.0,1.11858424]
[1753578455170,0.0004,118120.0,118110.0,1.14472424]
[1753578456157,0.0004,118120.0,118110.0,1.14572424]
[1753578457017,0.0004,118120.0,118110.0,1.14472424]
[1753578457421,0.0004,118120.0,118110.0,1.14672424]
[1753578458514,0.0004,118120.0,118110.0,1.15950724]
[1753578460322,0.0004,118120.0,118110.0,1.14672424]
[1753578462323,0.0004,118120.0,118110.0,0.5116304]
[1753578462532,0.0004,118120.0,118110.0,1.14672424]
[1753578464049,0.0004,118120.0,118110.0,1.14672424]
[1753578466244,0.00832298,118120.0,118110.0,1.14672424]
[1753578468212,0.0004,118120.0,118110.0,1.14672424]
[1753578482290,0.0004,118120.0,118110.0,0.5116304]
[1753578482515,0.0004,118120.0,118110.0,1.14672424]
[1753578492035,0.0004,118120.0,118110.0,1.41222424]
[1753578493003,0.0004,118120.0,118110.0,1.14672424]
[1753578493701,0.0004,118120.0,118110.0,1.16417326]
[1753578498130,0.0004,118120.0,118110.0,1.42967326]
[1753578504963,0.0004,118120.0,118110.0,1.76967326]
[1753578507502,0.0004,118120.0,118110.0,2.08722018]
[1753578507718,0.0504,118130.0,118120.0,1.21975922]
[1753578507993,0.05088599,118130.0,118120.0,1.76323129]
[1753578508206,0.05088599,118130.0,118120.0,1.79114129]
[1753578509335,1e-08,118130.0,118120.0,1.84114129]
[1753578510893,1e-08,118130.0,118120.0,1.84414129]
[1753578512023,1e-08,118140.0,118130.0,0.87804273]
[1753578512273,1e-08,118140.0,118130.0,1.52077733]
[1753578512490,1e-08,118150.0,118140.0,1.50477318]
[1753578512712,1e-08,118150.0,118140.0,1.43291356]
[1753578512941,1e-08,118150.0,118140.0,1.46082356]
[1753578514352,1e-08,118150.0,118140.0,1.46482356]
[1753578514573,1e-08,118150.0,118140.0,1.54930086]
[1753578515046,1e-08,118150.0,118140.0,1.19559861]
[1753578515709,1e-08,118150.0,118140.0,1.46109861]
[1753578516657,1e-08,118150.0,118140.0,1.19559861]
[1753578518029,1e-08,118150.0,118140.0,1.03428959]
[1753578518257,1e-08,118150.0,118140.0,1.14645959]
[1753578518477,1e-08,118150.0,118140.0,1.11862959]
[1753578519156,1e-08,118150.0,118140.0,1.14344959]
[1753578519644,1e-08,118150.0,118140.0,1.14653959]
[1753578520572,1e-08,118150.0,118140.0,0.80653959]
[1753578520787,1e-08,118150.0,118140.0,1.14649959]
[1753578522022,1e-08,118150.0,118140.0,1.13940959]
[1753578522246,0.04125001,118150.0,118140.0,1.11458959]
[1753578522466,0.04125001,118150.0,118140.0,1.11558959]
[1753578522952,0.03260001,118150.0,118140.0,1.11558959]
[1753578523832,0.03260001,118150.0,118140.0,0.98602959]
[1753578524058,0.03260001,118150.0,118140.0,0.834158]
[1753578524283,0.03260001,118150.0,118140.0,1.11554959]
[1753578524519,0.03260001,118150.0,118140.0,1.14036959]
[1753578524960,0.01630001,118150.0,118140.0,0.858978]
[1753578525179,0.01630001,118150.0,118140.0,1.14036959]
[1753578525448,1e-08,118150.0,118140.0,1.17650959]
[1753578525683,1e-08,118150.0,118140.0,1.7408502]
[1753578526207,1e-08,118160.0,118150.0,0.24321594]
[1753578526433,4.856e-05,118160.0,118150.0,1.35696667]
[1753578528012,4.856e-05,118160.0,118150.0,1.07557508]
[1753578528269,4.856e-05,118160.0,118150.0,1.35696667]
[1753578528455,4.856e-05,118160.0,118150.0,1.35996667]
[1753578528902,4.856e-05,118160.0,118150.0,1.07857508]
[1753578530133,4.856e-05,118160.0,118150.0,0.79718349]
[1753578530346,4.856e-05,118160.0,118150.0,1.07857508]
[1753578533868,4.856e-05,118160.0,118150.0,0.79718349]
[1753578534119,4.856e-05,118160.0,118150.0,1.35996667]
[1753578537731,4.856e-05,118160.0,118150.0,0.79718349]
[1753578537965,4.856e-05,118160.0,118150.0,1.35996667]
[1753578539277,1e-08,118160.0,118150.0,1.74996667]
[1753578548559,1e-08,118160.0,118150.0,1.74988667]
[1753578551796,1e-08,118160.0,118150.0,1.74901347]
[1753578552275,1e-08,118160.0,118150.0,1.46762188]
[1753578553236,1e-08,118160.0,118150.0,1.49303488]
[1753578553490,1e-08,118160.0,118150.0,1.31343488]
[1753578553676,1e-08,118160.0,118150.0,1.41189488]
[1753578556113,1e-08,118160.0,118150.0,1.28028488]
[1753578556334,1e-08,118160.0,118150.0,1.35652188]
[1753578556555,0.03080001,118160.0,118150.0,1.35652188]
[1753578556762,0.03945001,118160.0,118150.0,1.35652188]
[1753578557001,0.03945001,118160.0,118150.0,1.07357286]
[1753578557504,0.03945001,118160.0,118150.0,1.07057286]
[1753578557709,0.03945001,118160.0,118150.0,1.07257286]
[1753578557922,0.03080001,118160.0,118150.0,1.07257286]
[1753578558398,0.03180001,118160.0,118150.0,0.94301286]
[1753578558658,0.04045001,118160.0,118150.0,1.07261286]
[1753578558955,0.04045001,118160.0,118150.0,0.79122127]
[1753578559189,0.04045001,118160.0,118150.0,1.07261286]
[1753578561275,0.03180001,118160.0,118150.0,1.07261286]
[1753578561401,0.03180001,118160.0,118150.0,1.07061286]
[1753578561832,0.03180001,118160.0,118150.0,1.07161286]
[1753578563086,0.03180001,118160.0,118150.0,1.09658286]
[1753578563718,0.03180001,118160.0,118150.0,1.10058286]
[1753578565125,0.03180001,118160.0,118150.0,0.81919127]
[1753578565342,0.03180001,118160.0,118150.0,1.10058286]
[1753578567081,0.03180001,118160.0,118150.0,0.81919127]
[1753578567293,0.03180001,118160.0,118150.0,1.10058286]
[1753578567947,0.03180001,118160.0,118150.0,1.10367286]
[1753578568386,0.03180001,118160.0,118150.0,1.10566286]
[1753578568879,0.03180001,118160.0,118150.0,0.82427127]
[1753578569122,0.03180001,118160.0,118150.0,1.37116286]
[1753578574235,1e-08,118160.0,118150.0,1.37116286]
[1753578578400,1e-08,118160.0,118150.0,1.39608955]
[1753578580966,1e-08,118160.0,118150.0,1.43132475]
[1753578582524,1e-08,118160.0,118150.0,1.30172475]
[1753578582822,1e-08,118160.0,118150.0,1.43144475]
[1753578584889,1e-08,118160.0,118150.0,1.44734475]
[1753578585536,1e-08,118160.0,118150.0,1.44730475]
[1753578585992,1e-08,118160.0,118150.0,1.46260475]
[1753578591109,1e-08,118160.0,118150.0,1.14597796]
[1753578591317,1e-08,118160.0,118150.0,1.46260475]
[1753578604877,1e-08,118160.0,118150.0,1.14597796]
[1753578605099,1e-08,118160.0,118150.0,1.46260475]
[1753578605539,1e-08,118160.0,118150.0,1.14597796]
[1753578605760,1e-08,118160.0,118150.0,1.46260475]
[1753578606440,1e-08,118160.0,118150.0,1.44730475]
[1753578606662,1e-08,118160.0,118150.0,1.44710475]
[1753578611126,1e-08,118160.0,118150.0,1.18160475]
[1753578612994,1e-08,118160.0,118150.0,0.86497796]
[1753578613226,1e-08,118160.0,118150.0,1.18160475]
[1753578615825,1e-08,118160.0,118150.0,0.86497796]
[1753578616091,1e-08,118160.0,118150.0,1.18160475]
[1753578616308,1e-08,118160.0,118150.0,1.44710475]
[1753578618496,1e-08,118160.0,118150.0,1.46310475]
[1753578622151,1e-08,118160.0,118150.0,1.19760475]
[1753578632887,1e-08,118160.0,118150.0,1.06812475]
[1753578633099,1e-08,118160.0,118150.0,1.19724475]
[1753578634686,1e-08,118160.0,118150.0,1.53132056]
[1753578637371,1e-08,118160.0,118150.0,1.50639387]
[1753578639920,1e-08,118160.0,118150.0,1.77189387]
[1753578640147,1e-08,118160.0,118150.0,1.84726545]
[1753578643998,1e-08,118170.0,118160.0,0.58419945]
[1753578644203,1e-08,118170.0,118160.0,1.5241951]
[1753578645805,1e-08,118170.0,118160.0,1.5261951]
[1753578646221,1e-08,118170.0,118160.0,1.5311951]
[1753578652319,1e-08,118170.0,118160.0,1.4021951]
[1753578652562,1e-08,118170.0,118160.0,1.5312351]
[1753578654062,1e-08,118170.0,118160.0,1.4021951]
[1753578654266,1e-08,118170.0,118160.0,1.5312351]
[1753578655888,1e-08,118170.0,118160.0,1.4021951]
[1753578656096,1e-08,118170.0,118160.0,1.5312751]
[1753578657064,1e-08,118170.0,118160.0,0.89802152]
[1753578657290,1e-08,118170.0,118160.0,1.5312751]
[1753578660515,1e-08,118170.0,118160.0,1.7967751]
[1753578665334,1e-08,118170.0,118160.0,1.7966951]
[1753578666023,1e-08,118170.0,118160.0,1.6676951]
[1753578666234,1e-08,118170.0,118160.0,1.7966551]
[1753578670502,1e-08,118170.0,118160.0,1.77920608]
[1753578692326,1e-08,118170.0,118160.0,1.29948929]
[1753578692604,0.03160001,118170.0,118160.0,1.40009929]
[1753578692820,0.03160001,118170.0,118160.0,1.40013929]
[1753578694399,0.03160001,118170.0,118160.0,1.73935608]
[1753578694612,0.03160001,118170.0,118160.0,1.47684608]
[1753578694613,1e-08,118170.0,118160.0,1.47684608]
[1753578695467,1e-08,118170.0,118160.0,1.47880608]
[1753578696132,1e-08,118170.0,118160.0,1.47884608]
[1753578698699,1e-08,118170.0,118160.0,1.47880608]
[1753578700897,1e-08,118170.0,118160.0,1.47892608]
[1753578705038,1e-08,118170.0,118160.0,1.35008608]
[1753578705255,1e-08,118170.0,118160.0,1.47892608]
[1753578706070,1e-08,118170.0,118160.0,0.8456725]
[1753578706286,1e-08,118170.0,118160.0,1.47892608]
[1753578708096,1e-08,118170.0,118160.0,1.47888608]
[1753578711251,1e-08,118170.0,118160.0,1.35008608]
[1753578711452,1e-08,118170.0,118160.0,1.47884608]
[1753578718868,1e-08,118170.0,118160.0,1.51024608]
[1753578732295,1e-08,118170.0,118160.0,0.8769925]
[1753578732504,1e-08,118170.0,118160.0,1.51024608]
[1753578741165,1e-08,118170.0,118160.0,0.8769925]
[1753578741370,1e-08,118170.0,118160.0,1.51024608]
[1753578741987,1e-08,118170.0,118160.0,1.51020608]
[1753578758092,1e-08,118170.0,118160.0,1.77570608]
[1753578762114,1e-08,118170.0,118160.0,1.77075608]
[1753578767185,1e-08,118170.0,118160.0,1.77578608]
[1753578773805,1e-08,118170.0,118160.0,1.78543585]
[1753578781934,1e-08,118170.0,118160.0,1.78539585]
[1753578782572,1e-08,118170.0,118160.0,1.46284487]
[1753578782784,1e-08,118170.0,118160.0,1.80284487]
[1753578785615,1e-08,118170.0,118160.0,1.16959129]
[1753578785844,1e-08,118170.0,118160.0,1.80284487]
[1753578786771,1e-08,118170.0,118160.0,1.53734487]
[1753578794609,1e-08,118170.0,118160.0,1.58734487]
[1753578794850,1e-08,118180.0,118170.0,0.58228299]
[1753578795085,1e-08,118180.0,118170.0,1.85915796]
[1753578795597,1e-08,118180.0,118170.0,1.87555796]
[1753578796262,1e-08,118180.0,118170.0,1.55893117]
[1753578797023,1e-08,118180.0,118170.0,1.87555796]
[1753578797233,1e-08,118180.0,118170.0,1.87755796]
[1753578797472,1e-08,118180.0,118170.0,1.56093117]
[1753578797913,1e-08,118180.0,118170.0,1.55893117]
[1753578798385,1e-08,118180.0,118170.0,1.56293117]
[1753578798657,1e-08,118180.0,118170.0,1.87955796]
[1753578798890,1e-08,118180.0,118170.0,1.92955796]
[1753578799558,1e-08,118180.0,118170.0,2.19505796]
[1753578815508,1e-08,118180.0,118170.0,2.24585796]
[1753578815714,1e-08,118180.0,118170.0,2.19505796]
[1753578825196,1e-08,118180.0,118170.0,1.24517759]
[1753578825406,1e-08,118180.0,118170.0,2.19505796]
[1753578825620,1e-08,118180.0,118170.0,2.24582796]